[Event "Germany Countries-chT Youth 2022"]
[Site "Wiesbaden"]
[Date "2022.10.02"]
[Round "4"]
[White "Weishaeutel, Moritz"]
[Black "Post, Hugo"]
[Result "1-0"]
[ECO "A45"]
[WhiteElo "2401"]
[BlackElo "2176"]
[Annotator "TA"]
[PlyCount "77"]
[EventDate "2022.09.28"]
[EventType "team-tourn"]
[EventRounds "7"]
[EventCountry "GER"]
[SourceTitle "playchess.com"]
[Source "ChessBase"]
[SourceQuality "1"]
[TimeControl "40/5400+30:1800+30"]

{[%evp 9,77,20,14,20,14,5,19,12,47,40,43,35,47,39,46,43,43,45,70,69,91,38,45,43,35,29,37,41,56,0,0,0,0,0,95,77,622,595,2500,2495,2493,2445,2404,2425,1167,2368,2200,2123,2013,2024,1959,1954,1931,1924,1924,1839,1839,535,1791,1799,1647,1578,1665,1600,2081,1995,6283,6283,3029,2877]} 1. d4 {[%emt 0:00:02]} Nf6 {[%emt 0:00:07]} 2. Nc3 {[%emt 0:00:05]} d5 {[%emt 0:00:40]} 3. Bf4 {[%emt 0:00:05]} Bf5 {[%emt 0:03:34]} 4. f3 {[%emt 0:01:06]} Nc6 {[%emt 0:04:19]} 5. e3 {[%emt 0:04:54]} e6 {[%emt 0:02:45]} 6. g4 {[%emt 0:00:35] D00: 1 d4 d5: Unusual lines.} Bg6 {[%emt 0:00:44]} 7. h4 {[%emt 0:00:26] Hoping for h5.} h5 {[%emt 0:02:58]} 8. g5 {[%emt 0:00:07] [#] The position is equal.} Ng8 $146 {[%emt 0:00:39]} ({Predecessor:} 8... Nd7 9. Bd3 Bxd3 10. Qxd3 Bb4 11. O-O-O Ba5 12. e4 Nb6 13. g6 f6 14. Kb1 Qd7 15. exd5 Nxd5 16. Nxd5 Qxd5 {1-0 (37) Michelle,C (2176)-Al Shamsi,O (1452) Tornelo INT 2021}) 9. Qd2 {[%emt 0:04:34]} Bd6 {[%emt 0:11:27]} 10. Nge2 {[%emt 0:03:31]} Nge7 {[%emt 0:07:59]} 11. O-O-O {[%emt 0:01:45]} Na5 {[%emt 0:10:26]} 12. Bxd6 {[%emt 0:09:20]} Nc4 {[%emt 0:03:16]} 13. Qe1 $1 {[%emt 0:01:18]} (13. Bxe7 Qxe7 14. Nxd5 exd5 $15) 13... cxd6 {[%emt 0:05:54]} 14. Nf4 {[%emt 0:00:24]} Rc8 {[%emt 0:00:18]} 15. e4 {[%emt 0:06:48]} (15. Nxg6 Nxg6 16. b3 Na5 $11) ({White should try} 15. b3 $1 $16) 15... dxe4 $14 {[%emt 0:04:03]} 16. fxe4 {[%emt 0:00:08]} Qa5 {[%emt 0:01:24][%cal Oc4b2]} 17. Bxc4 {[%emt 0:06:54]} Rxc4 {[%emt 0:00:24]} 18. Qe2 {[%emt 0:01:33]} b5 {[%emt 0:02:35]} 19. Rhf1 {[%emt 0:06:12]} (19. Kb1 $14) 19... O-O $1 $11 {[%emt 0:02:49]} 20. Kb1 {[%emt 0:05:49]} Rfc8 {[%emt 0:01:08] ...b4 is the strong threat.} 21. Nxg6 {[%emt 0:00:57]} Nxg6 {[%emt 0:01:49]} (21... fxg6 $11 {keeps the balance.} 22. Rd2 b4) 22. Qxh5 $40 {[%emt 0:01:19][%cal Of1f7][%mdl 128] aiming for Rxf7! White attacks with force.} ({Don't play} 22. Qf3 $6 R8c7 $11) 22... b4 $2 {[%emt 0:20:53][%mdl 8192] [#] Loses the game.} (22... Rxc3 $16 23. bxc3 Rxc3) 23. Rxf7 $3 $18 {[%emt 0:00:34][%mdl 512] White is clearly winning.} Nf4 {[%emt 0:01:00]} (23... Kxf7 24. Rf1+) 24. Rxf4 {[%emt 0:01:21][%cal Oc3d5] Threatening mate with Nd5!} bxc3 {[%emt 0:00:28] [#]} 25. Qf7+ $1 {[%emt 0:02:14]} ({Weaker is} 25. b3 Qa3 26. Qf7+ Kh8 27. Qh5+ Kg8 28. Qf7+ Kh8 29. Qh5+ Kg8 $11) 25... Kh8 {[%emt 0:00:05]} 26. g6 {[%emt 0:01:20][%cal Of7f8] Intending Qf8+! and mate.} Rg8 {[%emt 0:02:48] Against Qf8} 27. Rdf1 {[%emt 0:01:27][%cal Of7g8] White wants to mate with Qxg8+!} Rcc8 {[%emt 0:02:30] [#]} 28. Rf5 $3 {[%emt 0:05:02][%mdl 512]} exf5 {[%emt 0:00:10]} (28... Qxf5 29. exf5) 29. Rxf5 {[%emt 0:00:03]} Qxf5 {[%emt 0:01:10]} 30. Qxf5 {[%emt 0:00:06][%cal Rf5h5][%mdl 4096] Endgame KQ-KRR} Rge8 {[%emt 0:00:04]} 31. Qh5+ {[%emt 0:00:06]} Kg8 {[%emt 0:00:02]} 32. Qh7+ {[%emt 0:00:06]} Kf8 {[%emt 0:00:02]} 33. Qh8+ {[%emt 0:00:05]} Ke7 {[%emt 0:00:03]} 34. Qxg7+ {[%emt 0:00:04]} Kd8 {[%emt 0:00:07]} 35. Qf6+ {[%emt 0:01:17]} Kc7 {[%emt 0:00:21]} 36. bxc3 {[%emt 0:02:10]} Rxe4 {[%emt 0:00:39]} 37. Qf7+ {[%emt 0:00:10]} Kc6 {[%emt 0:00:32]} 38. g7 {[%emt 0:02:13] Qc4+ would kill now.} Rb8+ {[%emt 0:02:29]} 39. Kc1 {[%emt 0:00:04] Weighted Error Value: White=0.07 (flawless) /Black=0.43} 1-0

[Event "Germany Countries-chT Youth 2022"]
[Site "Wiesbaden"]
[Date "2022.10.02"]
[Round "4"]
[White "Campora, Daniel H."]
[Black "Kocharin, Timur"]
[Result "1-0"]
[ECO "A46"]
[WhiteElo "2344"]
[BlackElo "1971"]
[Annotator "TA"]
[PlyCount "65"]
[EventDate "2022.09.28"]
[EventType "team-tourn"]
[EventRounds "7"]
[EventCountry "GER"]
[SourceTitle "playchess.com"]
[Source "ChessBase"]
[SourceQuality "1"]
[TimeControl "40/5400+30:1800+30"]

{[%evp 13,65,24,30,20,16,25,35,14,39,7,15,15,16,-4,1,5,32,18,4,-25,0,4,0,9,25,-39,-7,0,43,32,364,369,358,363,345,343,402,385,405,397,521,510,595,593,681,615,772,708,1264,1259,1683,1594,1260,1243]} 1. d4 {[%emt 0:00:30]} Nf6 {[%emt 0:00:29]} 2. Nf3 {[%emt 0:00:00]} e6 {[%emt 0:00:46]} 3. Bg5 {[%emt 0:00:00]} b6 {[%emt 0:00:50]} 4. Nbd2 {[%emt 0:03:39]} Bb7 {[%emt 0:01:52]} 5. e4 {[%emt 0:02:05]} h6 {[%emt 0:00:28]} 6. Bxf6 {[%emt 0:00:46]} Qxf6 {[%emt 0:00:02]} 7. Bd3 {[%emt 0:00:32]} d6 {[%emt 0:01:48]} 8. c3 {[%emt 0:01:13] A47: 1 d4 Nf6 2 Nf3 b6: Torre, London and Colle Systems.} Nd7 {[%emt 0:01:32]} 9. O-O {[%emt 0:01:45]} g6 {[%emt 0:04:40]} 10. Re1 {[%emt 0:21:46] [#] White is slightly better.} (10. a4 $5 {[%cal Ra4a5]}) 10... e5 $146 {[%emt 0:13:08]} ({Predecessor:} 10... Bg7 11. Qa4 a6 12. Rad1 Qe7 13. e5 O-O 14. exd6 cxd6 15. Qc2 Nf6 16. Ne4 Nd5 {0-1 (38) Brockman,R (1764)-Amrutha,M (2155) Parramatta 2009}) 11. Qa4 {[%emt 0:07:34] Black should prevent Bb5.} a6 {[%emt 0:09:21] Inhibits Bb5.} 12. Rad1 {[%emt 0:06:47]} Bg7 {[%emt 0:04:29]} 13. Nf1 {[%emt 0:05:49]} b5 {[%emt 0:04:22]} 14. Qa5 {[%emt 0:05:53]} Nb6 {[%emt 0:01:12][%cal Re5d4]} 15. a4 {[%emt 0:11:24]} bxa4 {[%emt 0:07:00]} 16. c4 {[%emt 0:01:59]} O-O {[%emt 0:02:56]} 17. c5 {[%emt 0:02:25]} dxc5 {[%emt 0:01:36]} 18. dxc5 {[%emt 0:00:21]} Nd7 {[%emt 0:01:01]} 19. Bc2 {[%emt 0:00:05]} (19. Qxc7 Qc6 20. Qxc6 Bxc6 $15) ({Better is} 19. h4 $11) 19... Bc6 {[%emt 0:04:51]} (19... Qc6 {seems wilder.} 20. Rd5 Qe6 21. Qxc7 Bxd5 22. exd5 Qxd5 23. Be4 Qxc5 24. Qxd7 Rab8) 20. Ne3 {[%emt 0:05:53][%cal Bf1e3,Be3d5,Bd5e7,Be7c6][%mdl 32]} Qe7 {[%emt 0:09:19]} 21. Nd5 $1 $36 {[%emt 0:03:42][%mdl 2048] White has the initiative.} ({Of course not} 21. Qxc7 Rfc8 22. Qd6 Qf8 $15) 21... Qxc5 {[%emt 0:00:48][%mdl 8192] Loses the game.} (21... Bxd5 $14 22. Rxd5 Rfd8) 22. Qxc5 $18 {[%emt 0:00:08][%mdl 64] [#] Remove Defender} Nxc5 {[%emt 0:00:06]} 23. Ne7+ {[%emt 0:00:06] Pair of Knights!} Kh7 {[%emt 0:01:10] Hoping for ...Bb7.} 24. Nxc6 {[%emt 0:00:07]} Rfe8 {[%emt 0:01:11]} 25. Rd5 {[%emt 0:00:29][%csl LRc5,LRe5]} Ne6 {[%emt 0:01:38]} 26. Bxa4 {[%emt 0:00:59]} Nf4 {[%emt 0:00:33]} 27. Rd7 {[%emt 0:00:21] White is clearly winning.} Re6 {[%emt 0:00:39]} 28. g3 {[%emt 0:01:32]} Nh5 {[%emt 0:00:41]} 29. Rxf7 {[%emt 0:00:57]} a5 {[%emt 0:00:43]} 30. Rd1 {[%emt 0:00:40]} Kg8 {[%emt 0:01:34]} 31. Rxc7 {[%emt 0:00:17] [#] aiming for Bb3.} Rf6 {[%emt 0:00:10]} 32. Nfxe5 {[%emt 0:01:25]} Kh8 {[%emt 0:00:29]} 33. Rdd7 {Weighted Error Value: White=0.14 (very precise) /Black=0.46} 1-0

[Event "Germany Countries-chT Youth 2022"]
[Site "Wiesbaden"]
[Date "2022.10.02"]
[Round "4"]
[White "Boder, Jan"]
[Black "Petrovsky, Vadim"]
[Result "0-1"]
[ECO "A01"]
[WhiteElo "2341"]
[BlackElo "1287"]
[Annotator "TA"]
[PlyCount "68"]
[EventDate "2022.09.28"]
[EventType "team-tourn"]
[EventRounds "7"]
[EventCountry "GER"]
[SourceTitle "playchess.com"]
[Source "ChessBase"]
[SourceQuality "1"]
[TimeControl "40/5400+30:1800+30"]

{[%evp 9,68,-20,37,-69,-69,-69,-65,-77,-68,-64,-62,-80,-68,-77,-71,-97,-76,-74,-79,-92,-77,-128,-135,-127,-133,-138,-136,-146,-102,-122,-94,-118,-121,-178,-162,-312,-323,-327,-300,-524,-525,-570,-556,-737,-739,-714,-732,-728,-716,-781,-757,-758,-777,-754,-735,-1226,-1200,-1721,-1865,-29998,-29999]} 1. b3 {[%emt 0:00:16]} d5 {[%emt 0:02:32]} 2. Bb2 {[%emt 0:00:39]} c5 {[%emt 0:00:08][%cal Bc7c5,Bc5d4][%mdl 32]} 3. e3 {[%emt 0:00:08]} a6 {[%emt 0:00:17]} 4. Nf3 {[%emt 0:00:58]} Nc6 {[%emt 0:00:23]} 5. c4 {[%emt 0:00:27]} Nf6 {[%emt 0:01:10]} (5... d4 $1 $11) 6. Be2 {[%emt 0:02:12] A06: Réti Opening: 1 Nf3 d5.} (6. cxd5 $14 Nxd5 7. Nc3) 6... d4 $1 $15 {[%emt 0:01:24]} 7. exd4 {[%emt 0:02:19]} cxd4 {[%emt 0:00:16] [#] Strongly threatening ...d3.} 8. d3 {[%emt 0:00:21][%cal Ob3b4] Black is slightly better.} e5 {[%emt 0:00:17]} 9. O-O {[%emt 0:00:15] [#]} Be7 $146 {[%emt 0:01:33]} ({Predecessor:} 9... Bd6 10. a3 a5 11. Nbd2 h6 12. Re1 O-O 13. Bf1 Re8 14. Qc2 Bc5 15. g3 Bf5 {1-0 (48) Colas,J (2207)-Turgut,T (2224) Saint Louis 2018}) 10. Na3 {[%emt 0:06:03]} O-O {[%emt 0:01:24]} 11. Nc2 {[%emt 0:00:07]} Re8 {[%emt 0:01:57]} 12. a3 {[%emt 0:03:39]} b5 {[%emt 0:01:41]} 13. Nd2 {[%emt 0:02:15]} Bf5 {[%emt 0:03:10]} 14. Bf3 {[%emt 0:02:31]} Rc8 {[%emt 0:00:43]} 15. cxb5 {[%emt 0:09:46]} (15. Ne1 $142) 15... axb5 $17 {[%emt 0:00:05]} 16. Ne4 {[%emt 0:00:07]} Nd5 {[%emt 0:07:38]} 17. b4 {[%emt 0:02:35]} Bg6 {[%emt 0:13:07]} 18. Re1 {[%emt 0:02:41]} Nb8 {[%emt 0:04:12][%cal Bc6b8,Bb8d7,Bd7b6,Bb6a4][%mdl 32]} 19. Ng3 {[%emt 0:06:00]} Nf4 {[%emt 0:08:11]} 20. Be4 {[%emt 0:01:21]} Nd7 {[%emt 0:01:21] Black has more active pieces. The white rooks are badly placed.} 21. Rc1 {[%emt 0:02:44]} (21. Bxg6 $17 Nxg6 22. Rb1) 21... Nb6 $19 {[%emt 0:11:20]} 22. Qf3 {[%emt 0:06:56]} (22. Bxg6 $142 Nxg6 23. Na1) 22... Na4 {[%emt 0:06:34]} 23. Ba1 {[%emt 0:02:45]} Bg5 {[%emt 0:01:16] Hoping for ...Ne6.} 24. Red1 $2 {[%emt 0:15:51] [#]} (24. Bc6 {was worth a try.} Nxd3 25. Bxe8 Nxc1 26. Nxd4 Qxe8 27. Ndf5 Bxf5 28. Qxf5) 24... Ne6 {[%emt 0:05:32]} 25. Bc6 {[%emt 0:00:47]} Bxc1 {[%emt 0:00:22]} 26. Bxb5 {[%emt 0:00:56]} Rxc2 {[%emt 0:00:21]} 27. Bxa4 {[%emt 0:00:10]} Rc8 {[%emt 0:00:52]} 28. Bxe8 {[%emt 0:00:58]} Qxe8 {[%emt 0:00:02]} 29. Ne4 {[%emt 0:03:13]} Qc6 {[%emt 0:01:54]} 30. Nc5 {[%emt 0:02:52]} Qxf3 {[%emt 0:00:36]} 31. gxf3 {[%emt 0:00:02]} Bxa3 {[%emt 0:00:22] White must now prevent ...Nf4.} 32. Na6 {[%emt 0:00:15]} Nf4 {[%emt 0:00:29]} 33. b5 {[%emt 0:00:05]} Bxd3 {[%emt 0:00:07]} 34. Rxd3 {[%emt 0:00:50]} Rc1+ {[%emt 0:00:02] Weighted Error Value: White=0.86/Black=0.06 (flawless)} 0-1

[Event "Germany Countries-chT Youth 2022"]
[Site "Wiesbaden"]
[Date "2022.10.02"]
[Round "4"]
[White "Schneider, Jana"]
[Black "Gluma, Christian"]
[Result "1-0"]
[ECO "B06"]
[WhiteElo "2323"]
[BlackElo "2107"]
[Annotator "TA"]
[PlyCount "105"]
[EventDate "2022.09.28"]
[EventType "team-tourn"]
[EventRounds "7"]
[EventCountry "GER"]
[SourceTitle "playchess.com"]
[Source "ChessBase"]
[SourceQuality "1"]
[TimeControl "40/5400+30:1800+30"]

{[%evp 9,104,53,47,37,36,27,22,16,35,28,37,-40,-33,-29,7,9,33,32,40,28,67,32,28,15,66,55,62,58,95,34,50,43,81,82,73,79,106,64,73,71,90,77,94,101,99,91,92,81,80,79,76,74,87,59,47,42,39,23,30,35,33,0,0,0,70,62,78,56,62,13,62,0,0,0,125,0,0,0,0,0,0,0,0,0,29975,710,702,675,29985,29986,29986,29987,29993,29994,29995,29996,29999]} 1. e4 {[%emt 0:00:03]} g6 {[%emt 0:00:03]} 2. d4 {[%emt 0:00:10]} Bg7 {[%emt 0:00:04]} 3. Nf3 {[%emt 0:00:12]} c6 {[%emt 0:00:07]} 4. h3 {[%emt 0:00:11]} d5 {[%emt 0:00:15]} 5. e5 {[%emt 0:00:08]} f6 {[%emt 0:00:30]} 6. c4 {[%emt 0:00:22] B06: Modern Defence.} fxe5 {[%emt 0:01:09]} 7. dxe5 {[%emt 0:02:06]} (7. Nxe5 {is interesting.} Nh6 8. Bxh6 Bxh6 9. cxd5 O-O 10. dxc6 Nxc6 11. Bc4+) 7... e6 {[%emt 0:01:49]} 8. Nc3 {[%emt 0:02:33] [#] The position is equal.} Nd7 $146 {[%emt 0:04:16]} ({Predecessor:} 8... Ne7 9. Bd3 O-O 10. Qe2 Nd7 11. Bg5 Rxf3 12. Qxf3 Nxe5 13. Qe2 h6 14. Bxe7 Qxe7 {½-½ (41) Sousa,A (2428)-Castillo Dalmau,A (2230) Ciudad Real 2021}) 9. Bf4 {[%emt 0:01:35]} Nh6 {[%emt 0:03:08]} 10. Bd3 {[%emt 0:08:52]} (10. cxd5 $14 exd5 11. Qd2) 10... O-O $15 {[%emt 0:10:14]} 11. Bh2 {[%emt 0:00:38]} b6 {[%emt 0:17:01]} 12. cxd5 {[%emt 0:00:54]} cxd5 {[%emt 0:09:42]} 13. O-O {[%emt 0:02:38]} Nc5 {[%emt 0:03:07]} 14. Bc2 {[%emt 0:02:31]} Bb7 {[%emt 0:04:17][%cal Od5d4]} 15. Re1 {[%emt 0:01:05]} Nf5 {[%emt 0:02:33]} 16. Nb5 {[%emt 0:05:01] Against d4} Qd7 {[%emt 0:05:02]} (16... Ne4 $11) 17. Nbd4 {[%emt 0:01:17]} Nxd4 {[%emt 0:02:59]} 18. Nxd4 {[%emt 0:01:03]} Qf7 {[%emt 0:01:02] [#]} 19. f3 {[%emt 0:03:58]} (19. Bg3 $1 $16) 19... Qe7 {[%emt 0:02:55]} 20. Qd2 {[%emt 0:03:03]} Rae8 {[%emt 0:04:49]} 21. b4 {[%emt 0:01:10]} Nd7 {[%emt 0:00:58]} 22. Bg3 {[%emt 0:02:24]} Nb8 {[%emt 0:02:43]} 23. Ba4 {[%emt 0:03:10] Against Nc6} Rc8 {[%emt 0:00:55]} 24. Rac1 {[%emt 0:02:25] Prevents Nc6.} Rc4 {[%emt 0:03:44]} 25. Bb3 {[%emt 0:10:01]} Rcc8 {[%emt 0:00:50]} 26. a3 {[%emt 0:01:39]} Kh8 {[%emt 0:05:12]} 27. Ba4 {[%emt 0:02:21]} a6 {[%emt 0:04:31]} 28. Bf2 {[%emt 0:03:44]} Rxc1 {[%emt 0:02:03]} 29. Qxc1 {[%emt 0:07:10]} Rc8 {[%emt 0:00:31]} 30. Qf4 {[%emt 0:00:42]} b5 {[%emt 0:02:49]} 31. Bb3 {[%emt 0:02:12]} Nc6 {[%emt 0:00:54]} 32. Bh4 {[%emt 0:03:17]} Qd7 {[%emt 0:00:42]} 33. Bf6 {[%emt 0:07:11] Hoping for Bxg7+.} Nxd4 {[%emt 0:01:38]} 34. Qxd4 {[%emt 0:01:04]} Kg8 {[%emt 0:00:43]} 35. Re3 {[%emt 0:05:06]} Bh6 {[%emt 0:02:12]} 36. f4 {[%emt 0:00:57]} Qc7 {[%emt 0:00:40]} (36... Rc1+ $11 37. Kh2 Qc7) 37. Rf3 $14 {[%emt 0:04:50]} Bg7 {[%emt 0:01:47]} 38. Bh4 {[%emt 0:03:22] White has more active pieces.} (38. h4 $5 {[%cal Rh4h5]}) 38... Bf8 {[%emt 0:00:44]} 39. f5 {[%emt 0:04:43]} (39. Kh2 $14) 39... gxf5 {[%emt 0:00:28]} (39... exf5 $11 40. Bxd5+ Bxd5 41. Qxd5+ Kh8) 40. Rg3+ {[%emt 0:01:30]} (40. Bf6 $14) 40... Kf7 $1 $11 {[%emt 0:00:31]} 41. Bd1 {[%emt 0:05:05][%cal Rd1h5]} Bh6 {[%emt 0:09:10] [#]} (41... Bg7 $1 $11 42. Bh5+ Kf8) 42. Kh2 {[%emt 0:05:01]} (42. Bg5 $1 $16 {[%cal Rg5h6]} Bxg5 43. Rxg5) 42... Qc4 {[%emt 0:07:42]} 43. Qb6 {[%emt 0:01:19]} Qc6 {[%emt 0:00:52]} 44. Qd4 {[%emt 0:01:50]} Qc4 {[%emt 0:01:11]} 45. Qb6 {[%emt 0:05:54] White threatens Bh5+ and mate.} Qc6 {[%emt 0:01:05]} 46. Qf2 $40 {[%emt 0:02:03][%mdl 128] Bh5+ is the strong threat. White has some attack. The board is on fire.} Qc4 $2 {[%emt 0:03:24][%mdl 8192]} (46... Qc1 $11 47. Qb6 Qc6) 47. Bg5 {[%emt 0:03:02]} (47. Bh5+ $142 Kf8 48. Bg5 Bxg5 49. Rxg5 Re8 50. Qg3 Ke7 51. Bxe8 Kd8 52. Rg7) 47... Bxg5 $18 {[%emt 0:03:32]} 48. Rxg5 {[%emt 0:00:01] Threatening mate with Bh5+.} Rc7 {[%emt 0:06:44]} 49. Bh5+ {[%emt 0:02:27] White mates.} Ke7 {[%emt 0:00:35]} 50. Rg8 {[%emt 0:02:45]} Kd7 {[%emt 0:00:59]} 51. Be8+ {[%emt 0:00:15]} Ke7 {[%emt 0:00:24]} 52. Qg3 {[%emt 0:00:19][%cal Rg3g5]} Qe4 {[%emt 0:00:43]} 53. Qg5# {[%emt 0:00:14] Weighted Error Value: White=0.18 (very precise) /Black=0.34} 1-0

[Event "Germany Countries-chT Youth 2022"]
[Site "Wiesbaden"]
[Date "2022.10.02"]
[Round "4"]
[White "Stork, Oliver"]
[Black "Musiolik, David"]
[Result "0-1"]
[ECO "A05"]
[WhiteElo "2315"]
[BlackElo "2252"]
[Annotator "TA"]
[PlyCount "79"]
[EventDate "2022.09.28"]
[EventType "team-tourn"]
[EventRounds "7"]
[EventCountry "GER"]
[SourceTitle "playchess.com"]
[Source "ChessBase"]
[SourceQuality "1"]
[TimeControl "40/5400+30:1800+30"]

{[%evp 9,79,12,13,13,13,7,18,22,27,-33,-19,-29,-31,-151,-133,-165,-120,-163,-83,-61,-63,-58,-63,-73,-45,-34,-50,-55,-38,-30,-19,-33,0,0,45,44,33,31,75,0,0,0,0,0,0,-21,-8,-20,-25,-45,-46,-50,0,0,0,0,0,0,0,-277,-268,-702,-683,-647,-552,-1090,-814,-788,-593,-12841,-12841,-12839]} 1. Nf3 {[%emt 0:00:03]} Nf6 {[%emt 0:00:28]} 2. c4 {[%emt 0:00:09]} e6 {[%emt 0:01:07]} 3. b3 {[%emt 0:00:09]} d5 {[%emt 0:00:17]} 4. e3 {[%emt 0:00:09]} Bd6 {[%emt 0:03:47]} 5. Bb2 {[%emt 0:01:08]} O-O {[%emt 0:04:18]} 6. Nc3 {[%emt 0:04:53] A13: English Opening: 1...e6.} b6 {[%emt 0:01:53] 6...Re8 is the modern continuation.} 7. cxd5 {[%emt 0:21:44]} exd5 {[%emt 0:01:29]} 8. Nb5 {[%emt 0:01:03] The position is equal.} Be7 {[%emt 0:02:32] [#]} 9. Qc2 $146 {[%emt 0:00:53]} (9. Be5 $11 Na6 10. Nbd4) ({Predecessor:} 9. Be5 Ne8 10. Rc1 c5 11. Bxb8 Rxb8 12. Nxa7 Bb7 13. Nb5 d4 14. Bc4 Nd6 15. O-O Nxc4 16. bxc4 {1-0 (38) Artemiev,V (2700)-Ding,L (2799) chess24.com INT 2022}) 9... c5 $15 {[%emt 0:03:06]} 10. d4 {[%emt 0:07:24]} Nc6 {[%emt 0:02:15]} 11. Rd1 {[%emt 0:09:54]} (11. Bd3 $15) 11... Nb4 $1 $17 {[%emt 0:09:18][%csl LRa2,LRc2]} 12. Qb1 {[%emt 0:07:03] [#]} g6 $1 {[%emt 0:00:40]} 13. Bd3 {[%emt 0:02:00] [#] Inhibits Bf5.} Nxd3+ {[%emt 0:02:37]} (13... c4 $1 $19 14. bxc4 dxc4) 14. Qxd3 {[%emt 0:00:12]} Bf5 {[%emt 0:00:47]} 15. Qe2 {[%emt 0:00:48]} c4 $1 {[%emt 0:01:13]} 16. Ne5 {[%emt 0:05:34]} Bb4+ {[%emt 0:04:58]} 17. Bc3 {[%emt 0:03:54]} Bxc3+ {[%emt 0:01:37]} 18. Nxc3 {[%emt 0:00:05] Pair of Knights!} b5 {[%emt 0:01:05]} 19. bxc4 {[%emt 0:03:03]} dxc4 {[%emt 0:05:23]} (19... Qa5 $5 {[%cal Ra5c3]} 20. Qd2 dxc4 $11) 20. O-O {[%emt 0:13:34]} Qa5 {[%emt 0:05:42]} (20... b4 $5 {[%cal Rb4c3]} 21. e4 Bd7 22. Nxd7 Qxd7 $11) 21. Rc1 {[%emt 0:03:47]} Be6 {[%emt 0:15:22]} (21... Ne4 $5 {[%cal Re4c3]} 22. Nd5 Be6 $11) 22. Qf3 {[%emt 0:02:26]} Kg7 {[%emt 0:12:56]} 23. d5 {[%emt 0:03:08]} Bd7 {[%emt 0:01:23]} 24. g4 {[%emt 0:00:27]} ({White should try} 24. a4 $16) 24... Qc7 $11 {[%emt 0:01:21]} 25. Nxd7 {[%emt 0:03:23]} Qxd7 {[%emt 0:00:02]} 26. g5 {[%emt 0:00:09]} Ne8 {[%emt 0:01:11]} 27. Rb1 {[%emt 0:00:56]} a6 {[%emt 0:02:27]} 28. a4 {[%emt 0:00:40][%cal Ra4b5]} Rb8 {[%emt 0:00:55]} 29. axb5 {[%emt 0:00:30]} axb5 {[%emt 0:00:02]} 30. Qg3 {[%emt 0:02:23]} Rb7 {[%emt 0:02:09]} (30... Nd6 $1 $15) 31. Rb4 {[%emt 0:00:24]} f6 {[%emt 0:01:14]} 32. Rfb1 {[%emt 0:00:56][%cal Rb4b5]} Nd6 {[%emt 0:00:39]} 33. gxf6+ {[%emt 0:00:19]} Rxf6 {[%emt 0:00:19]} 34. Ne2 $2 {[%emt 0:03:43][%mdl 8192]} (34. e4 $11 {and White stays safe.} Rf8 35. f4) 34... Ne4 $1 $19 {[%emt 0:00:27][%csl LRd5,LRf2,LRg3]} 35. Qe5 {[%emt 0:00:02]} (35. Qg2 Nd2 36. Nd4 Nxb1 37. Rxb1) 35... Qg4+ {[%emt 0:04:26] Black is clearly winning.} 36. Ng3 {[%emt 0:00:01]} Nd2 {[%emt 0:04:09] Threatens to win with ...Nf3+.} 37. Qe8 {[%emt 0:01:04]} Nxb1 {[%emt 0:02:04]} 38. Rxb1 {[%emt 0:00:10]} c3 {[%emt 0:01:19] ...c2 is the strong threat.} 39. Rxb5 {[%emt 0:01:18]} Rxb5 {[%emt 0:02:21]} 40. Qxb5 {[%emt 0:00:00] Weighted Error Value: White=0.71/Black=0.24 (precise)} 0-1